bitfinex-derivatives/quotes_ETHF0:USTF0_20250123
["timestamp","ask_amount","ask_price","bid_price","bid_amount"]
[1737671107692,3.2078,3296.8,3295.9,0.00454987]
[1737671107892,0.05085123,3296.7,3295.9,0.00454987]
[1737671108088,0.6067,3296.0,3295.9,0.00454987]
[1737671108295,3.2078,3296.8,3295.9,0.00454987]
[1737671108496,3.27004194,3298.5,3296.4,0.60661]
[1737671108497,3.81429,3297.2,3296.4,0.60661]
[1737671108696,0.6065,3297.1,3296.6,44.0078]
[1737671108898,3.2078,3297.2,3296.6,44.0078]
[1737671110294,0.6065,3297.1,3296.6,44.0078]
[1737671110494,3.81429,3297.2,3296.6,44.0078]
[1737671110799,0.60656,3296.8,3296.5,0.5202]
[1737671111095,0.60659,3296.6,3296.5,0.5202]
[1737671111391,3.2078,3297.2,3295.9,0.00454987]
[1737671111392,1.51631,3297.0,3295.9,0.00454987]
[1737671111594,0.05084774,3296.9,3295.9,0.00454987]
[1737671111800,0.05084774,3296.9,3296.1,3.2078]
[1737671111801,0.60657,3296.7,3296.1,3.2078]
[1737671111995,3.2078,3296.8,3296.1,3.2078]
[1737671112197,1.51598,3297.7,3296.6,3.2078]
[1737671112198,0.60655,3296.9,3296.6,3.2078]
[1737671112497,0.60656,3296.8,3296.2,3.2078]
[1737671112702,3.2078,3297.2,3296.2,6.47784194]
[1737671112896,0.05084321,3297.1,3296.2,6.47784194]
[1737671113106,3.81428,3297.2,3296.5,0.60659]
[1737671113295,0.60652,3297.0,3296.6,0.5129]
[1737671113492,3.2078,3297.2,3296.6,3.7207]
[1737671113696,3.2078,3297.2,3296.6,4.32727]
[1737671114196,3.2078,3297.2,3296.7,3.27004194]
[1737671114409,0.60642,3297.5,3296.8,0.60655]
[1737671114597,3.81421,3297.6,3296.7,3.27004194]
[1737671114790,3.2078,3297.6,3296.7,3.27004194]
[1737671115107,3.2078,3297.6,3297.3,0.60644]
[1737671115300,3.2078,3297.6,3297.2,3.27004194]
[1737671115905,0.60625,3298.5,3297.9,0.60634]
[1737671116099,0.05082055,3298.4,3298.0,0.60633]
[1737671116295,0.65706055,3298.5,3298.1,3.2078]
[1737671116502,3.2078,3298.6,3298.1,3.81411]
[1737671116698,3.2078,3298.6,3298.3,0.60628]
[1737671116897,3.2078,3298.6,3298.5,0.60624]
[1737671117206,3.2078,3299.4,3298.5,3.2078]
[1737671117403,3.2078,3299.4,3297.9,0.00454987]
[1737671117404,6.84e-06,3299.3,3298.8,0.60618]
[1737671117604,3.2078,3299.8,3299.2,6.47784194]
[1737671117907,3.2078,3299.8,3299.4,0.60606]
[1737671118205,3.2078,3300.9,3299.7,3.2078]
[1737671118406,0.0504006,3300.2,3299.8,3.2078]
[1737671119005,0.60602,3299.7,3299.6,0.00454987]
[1737671119200,0.6564206,3299.7,3299.6,9.87e-06]
[1737671119407,5.6564206,3299.7,3299.6,9.87e-06]
[1737671119595,5.94073849,3299.7,3299.6,9.87e-06]
[1737671119999,5.94075686,3299.7,3299.6,9.87e-06]
[1737671120801,3.03021,3299.6,3297.6,3.27004194]
[1737671121102,3.03021,3299.6,3297.3,3.2078]
[1737671121103,3.2078,3298.3,3297.3,3.2078]
[1737671121310,0.60631,3298.1,3297.3,3.2078]
[1737671121508,3.2078,3298.3,3297.3,3.2078]
[1737671121509,0.05041897,3298.0,3297.6,3.27004194]
[1737671121800,0.9791,3298.6,3297.7,3.2078]
[1737671122010,0.00453328,3298.1,3297.7,3.2078]
[1737671122410,0.60641,3297.6,3297.5,0.00454987]
[1737671123695,0.65685188,3297.6,3297.5,0.00454987]
[1737671124098,8.25824188,3297.6,3296.6,3.27004194]
[1737671124303,0.5105,3297.8,3296.3,3.2078]
[1737671124304,3.2078,3297.0,3296.3,3.2078]
[1737671124809,0.60653,3296.9,3296.3,3.2078]
[1737671125006,3.2078,3296.6,3296.1,3.27004194]
[1737671125206,3.2078,3296.6,3295.6,6.95194194]
[1737671125402,3.2078,3296.6,3296.0,0.00454987]
[1737671125595,0.60665,3296.3,3296.0,0.00454987]
[1737671125796,0.00454987,3296.4,3296.0,0.00454987]
[1737671126001,0.60667,3296.2,3296.0,0.00454987]
[1737671126203,0.00454987,3296.4,3296.0,0.00454987]
[1737671126412,0.00454987,3296.4,3296.1,3.27004194]
[1737671126708,0.00454987,3296.4,3296.3,0.60664]
[1737671127207,0.5006,3297.6,3296.3,5.0]
[1737671127407,0.60638,3297.8,3297.2,0.60647]
[1737671127608,0.60638,3297.8,3297.4,40.8]
[1737671128104,0.00379133,3297.9,3297.4,40.8]
[1737671128302,0.60639,3297.7,3297.4,40.8]
[1737671128602,0.60637,3297.8,3297.4,40.8]
[1737671129211,0.00832461,3297.9,3297.8,0.60637]
[1737671129802,0.00832461,3297.9,3297.7,3.2078]
[1737671130003,0.00832461,3297.9,3297.8,0.60637]
[1737671130199,0.00832461,3297.9,3297.7,3.2078]
[1737671130411,0.61468461,3297.9,3297.7,3.2078]
[1737671130604,0.61468461,3297.9,3297.5,3.27004194]
[1737671130808,0.61468461,3297.9,3297.8,40.8]
[1737671131397,0.60641,3297.6,3297.5,3.27004194]
[1737671131608,0.61467461,3297.9,3297.5,3.27004194]
[1737671131810,0.61467461,3297.9,3297.5,3.87645194]
[1737671131811,0.00832461,3297.9,3297.5,3.87645194]
[1737671132197,0.00832461,3297.9,3297.6,0.60639]
[1737671132402,0.00832461,3297.9,3297.5,3.87645194]
[1737671132704,0.60641,3297.6,3297.5,3.27004194]
[1737671133105,5.05043844,3297.6,3296.5,6.47784194]
[1737671133307,2.15267828,3297.8,3296.5,6.47784194]
[1737671133308,0.60658,3296.7,3296.5,6.47784194]
[1737671133704,0.80468378,3297.3,3296.5,6.47784194]
[1737671133905,0.56015021,3297.2,3296.5,3.2078]
[1737671134105,0.60662,3296.5,3296.0,3.27459181]
[1737671134306,3.2078,3296.7,3296.0,3.27459181]
[1737671134500,0.60665,3296.3,3296.0,3.27459181]
[1737671134713,3.2078,3296.7,3296.0,3.27459181]
[1737671134911,0.60668,3296.1,3296.0,0.00454987]
[1737671135320,0.65714569,3296.1,3296.0,0.00454987]
[1737671135611,1.97164764,3296.1,3296.0,0.00454987]
[1737671135821,1.97164764,3296.1,3295.0,3.27004194]
[1737671135822,6.36496764,3296.1,3295.0,3.27004194]
[1737671136018,0.60687,3295.1,3295.0,3.27004194]
[1737671136218,0.60693,3294.8,3294.5,3.27004194]
[1737671136409,0.79353879,3295.6,3294.5,3.27004194]
[1737671136611,0.05047652,3295.5,3295.0,3.27004194]
[1737671136810,0.60685,3295.2,3295.0,3.27004194]
[1737671137013,0.51344987,3295.6,3295.0,3.27004194]
[1737671137211,3.2078,3295.2,3294.9,0.00454987]
[1737671137509,0.60688,3295.0,3294.9,0.00454987]
[1737671137713,0.65736239,3295.0,3294.9,0.00454987]
[1737671138012,1.16486719,3295.0,3294.9,0.00454987]
[1737671138208,0.60701,3294.3,3294.2,3.2078]
[1737671138420,0.55798719,3295.0,3294.0,40.8]
[1737671138421,0.60705,3294.1,3294.0,40.8]
[1737671138914,3.2078,3294.9,3293.9,3.2078]
[1737671139114,3.2078,3295.3,3294.5,6.47784194]
[1737671139318,0.0504826,3295.2,3294.6,40.8]
[1737671139619,0.00454987,3295.6,3295.2,0.60684]
[1737671139820,0.00454987,3295.6,3295.2,0.60683]
[1737671140115,0.00454987,3295.6,3295.0,3.27004194]
[1737671140315,0.00454987,3295.6,3295.3,3.2078]
[1737671140517,0.00454987,3295.6,3295.0,3.27004194]
[1737671140718,0.61133987,3295.6,3295.0,3.27004194]
[1737671140919,0.00454987,3295.6,3295.1,0.60685]
[1737671141317,0.00454987,3295.6,3295.0,3.27004194]
[1737671141521,0.00454987,3295.6,3295.0,3.87691194]
[1737671141708,0.00454987,3295.6,3295.0,3.27004194]
[1737671142321,0.6068,3295.5,3295.0,3.27004194]
[1737671142519,0.00454987,3295.6,3295.0,3.87691194]
[1737671142915,0.00454987,3295.6,3295.0,3.87692194]
[1737671143122,0.00454987,3295.6,3295.0,3.27004194]
[1737671143519,0.00454987,3295.6,3295.0,3.87692194]
[1737671144216,0.00454987,3295.6,3295.0,3.27004194]
[1737671144715,0.00454987,3295.6,3295.0,3.87691194]
[1737671144915,0.00454987,3295.6,3295.1,40.8]
[1737671145118,0.00454987,3295.6,3295.3,3.2078]
[1737671145317,0.00454987,3295.6,3295.5,3.87683194]
[1737671147023,0.00454987,3295.6,3295.5,8.87683194]
[1737671147220,3.2078,3297.8,3295.5,8.27004194]
[1737671147427,3.54272086,3297.7,3296.3,0.60663]
[1737671147629,0.05044874,3297.6,3296.7,3.27004194]
[1737671147924,0.05044874,3297.6,3297.0,3.8143]
[1737671148315,0.05044874,3297.6,3297.0,3.81884987]
[1737671148316,0.05499861,3297.6,3297.0,3.81884987]
[1737671148521,0.00454987,3297.6,3297.0,3.21234987]
[1737671149018,0.61096987,3297.6,3297.0,3.21234987]
[1737671149225,0.0504409,3297.5,3297.0,0.00454987]
[1737671149423,0.60646,3297.3,3297.0,0.00454987]
[1737671149825,3.21234987,3297.6,3297.0,0.00454987]
[1737671150121,0.6065,3297.1,3297.0,0.00454987]
[1737671151523,3.86474652,3297.1,3297.0,0.00454987]
[1737671152028,0.60664,3296.3,3296.2,3.2078]
[1737671152827,0.60674,3295.8,3295.6,3.2078]
[1737671153045,1.51653,3296.5,3295.2,3.27004194]
[1737671153046,0.6068,3295.5,3295.2,3.27004194]
[1737671153332,0.6068,3295.5,3295.4,0.00454987]
[1737671153538,3.86507283,3295.5,3295.4,0.00454987]
[1737671153937,0.00454987,3295.7,3295.4,0.00454987]
[1737671154231,0.00454987,3295.7,3295.5,3.2078]
[1737671154429,0.00454987,3295.7,3295.4,0.00454987]
[1737671154630,0.00454987,3295.7,3295.6,0.60677]
[1737671155736,0.00454987,3295.7,3295.5,3.7269]
[1737671156235,0.00454987,3295.7,3295.5,0.5191]
[1737671157238,0.00454987,3295.7,3295.4,3.21234987]
[1737671157432,0.60679,3295.5,3295.4,0.00454987]
[1737671157831,0.65726397,3295.5,3295.4,0.00454987]
[1737671158029,0.00454987,3295.7,3295.4,0.00454987]
[1737671158231,0.00454987,3295.7,3295.6,3.27004194]
[1737671158831,0.61129987,3295.7,3295.4,0.00454987]
[1737671159033,0.00454987,3295.7,3295.4,0.00454987]
[1737671159336,0.60679,3295.5,3295.4,0.00454987]
[1737671159537,0.00454987,3295.7,3295.4,0.00454987]
[1737671159842,0.65726357,3295.6,3295.4,0.00454987]
[1737671160140,0.00454987,3295.7,3295.4,0.00454987]
[1737671160840,0.61130987,3295.7,3295.4,0.00454987]
[1737671161038,0.00454987,3295.7,3295.4,0.00454987]
[1737671161236,0.60679,3295.5,3295.4,0.00454987]
[1737671161437,0.60679,3295.5,3294.9,0.60689]
[1737671161635,0.00454987,3295.7,3294.8,3.2078]
[1737671161840,0.00454987,3295.7,3294.9,3.27004194]
[1737671162332,0.00454987,3295.7,3295.4,3.2078]
[1737671162533,0.00454987,3295.7,3295.4,3.81461]
[1737671162938,0.00454987,3295.7,3295.4,3.2078]
[1737671163142,0.00454987,3295.7,3295.6,0.60677]
[1737671163435,0.28457143,3296.3,3295.5,0.4903]
[1737671163640,1.825,3297.5,3296.0,0.60669]
[1737671163641,0.60659,3296.6,3296.0,0.60669]
[1737671163844,0.0504571,3296.5,3296.1,40.8]
[1737671164137,3.2078,3296.8,3296.1,40.8]
[1737671164138,0.2845256,3296.7,3296.2,3.2078]
[1737671164444,0.2845256,3296.7,3296.2,3.81445]
[1737671164639,0.00454987,3296.8,3296.2,3.2078]
[1737671164836,0.05045313,3296.7,3296.2,3.2078]
[1737671165042,0.60664,3296.3,3296.2,3.2078]
[1737671165541,0.65709958,3296.3,3296.2,3.2078]
[1737671166242,0.65710026,3296.3,3296.2,3.2078]
[1737671166444,0.05046026,3296.3,3296.2,3.2078]
[1737671166835,0.65710037,3296.3,3296.2,3.2078]
[1737671167045,0.05046037,3296.3,3296.2,3.2078]
[1737671167731,0.65710037,3296.3,3296.2,3.2078]
[1737671167936,0.05046037,3296.3,3295.6,3.2078]
[1737671168147,0.33498597,3296.3,3295.6,3.2078]
[1737671168342,0.60663,3296.4,3295.7,0.60674]
[1737671168546,0.63764647,3296.7,3295.8,40.8]
[1737671168737,0.60661,3296.5,3295.8,40.8]
[1737671168937,0.60666,3296.2,3295.8,40.8]
[1737671169138,0.60664,3296.4,3295.8,40.8]
[1737671169339,0.65709881,3296.3,3295.8,40.8]
[1737671169546,0.63764647,3296.7,3295.8,40.8]
[1737671169741,0.60663,3296.4,3295.7,0.60674]
[1737671169942,0.05045843,3296.3,3295.7,0.60674]
[1737671170242,0.65710843,3296.3,3295.8,40.8]
[1737671170444,0.60665,3296.3,3295.8,40.8]
[1737671170847,0.60664,3296.3,3295.6,3.2078]
[1737671171047,0.05046342,3296.2,3295.6,3.2078]
[1737671171242,0.60668,3296.1,3295.6,3.2078]
[1737671171445,0.5251,3296.1,3295.6,3.2078]
[1737671171644,0.60672,3295.9,3295.6,3.2078]
[1737671171946,0.5251,3296.1,3295.2,0.00454987]
[1737671172142,0.05046654,3296.0,3295.2,0.00454987]
[1737671172540,0.60672,3295.9,3295.2,0.61137987]
[1737671172740,1.1318,3296.1,3295.3,0.60683]
[1737671173042,0.0504688,3296.0,3295.2,0.00454987]
[1737671173442,0.60677,3295.6,3295.2,0.00454987]
[1737671173645,0.003,3296.3,3296.2,0.60666]
[1737671173944,0.003,3296.3,3296.2,7.08450194]
[1737671175848,0.003,3296.3,3296.2,3.87670194]
[1737671177542,0.003,3296.3,3296.2,44.67670194]
[1737671177748,0.00454987,3296.8,3296.2,49.07004194]
[1737671177950,0.00454987,3296.8,3296.7,7.08441194]
[1737671178550,0.60642,3297.5,3296.7,47.27784194]
[1737671178756,0.4911,3297.8,3297.1,3.2078]
[1737671178951,0.60641,3297.6,3297.2,0.60647]
[1737671179347,0.6064,3297.7,3297.3,0.60645]
[1737671179549,0.6064,3297.7,3297.2,0.60646]
[1737671179753,0.00454987,3297.8,3297.2,0.00454987]
[1737671180259,0.6064,3297.6,3297.2,0.00454987]
[1737671180751,0.00454987,3297.8,3297.6,0.60639]
[1737671180950,0.00454987,3297.8,3297.5,3.2078]
[1737671181351,0.00454987,3297.8,3297.6,0.60639]
[1737671181852,0.00454987,3297.8,3297.5,3.2078]
[1737671182154,0.00454987,3297.8,3297.7,0.60639]
[1737671182650,0.00454987,3297.8,3297.7,5.60639]
[1737671183157,0.03,3297.8,3297.7,5.60639]
[1737671183754,0.89047736,3299.0,3297.7,45.8]
[1737671183956,0.28429532,3299.0,3298.1,3.27004194]
[1737671184158,0.05041458,3298.9,3298.4,3.81405]
[1737671184348,0.00453328,3298.9,3298.4,3.81405]
[1737671184548,0.00453328,3298.9,3298.4,3.2078]
[1737671185557,0.60618,3298.8,3298.4,3.2078]
[1737671185754,1.08781,3298.7,3298.4,3.2078]
[1737671186456,0.4816,3298.7,3298.4,3.2078]
[1737671186852,1.0878,3298.7,3298.4,3.2078]
[1737671187062,0.4816,3298.7,3298.4,3.2078]
[1737671188751,0.60622,3298.6,3298.4,3.2078]
[1737671188950,0.4816,3298.7,3298.4,3.2078]
[1737671189152,0.60624,3298.5,3298.4,3.2078]
[1737671189352,0.60624,3298.5,3296.3,41.1032]
[1737671189353,3.2078,3298.5,3297.1,6.98624194]
[1737671189654,0.5244,3298.4,3297.3,3.32974383]
[1737671189856,0.60636,3297.9,3297.3,3.32974383]
[1737671190051,0.5244,3298.4,3297.3,2.82604383]
[1737671190252,0.5244,3298.4,3297.1,3.2078]
[1737671190253,3.2078,3297.8,3296.5,2.82604383]
[1737671190448,0.60646,3297.3,3296.6,3.2078]
[1737671190654,0.60657,3296.7,3296.6,3.2078]
[1737671190954,0.60666,3296.2,3295.9,3.2078]
[1737671191153,0.60666,3296.3,3295.9,44.0078]
[1737671191355,3.2078,3296.8,3295.4,3.2078]
[1737671191659,3.2078,3296.8,3294.1,15.78767173]
[1737671191660,3.2078,3295.9,3295.8,0.00454987]
[1737671191954,3.81452,3295.9,3295.8,0.00454987]
[1737671192860,3.2078,3295.9,3295.1,40.8]
[1737671193352,0.60684,3295.3,3295.1,40.8]
[1737671193556,0.60685,3295.2,3295.1,40.8]
[1737671193865,0.60685,3295.2,3294.5,3.2078]
[1737671194059,0.60687,3295.1,3294.8,0.00454987]
[1737671194263,0.60685,3295.2,3294.8,0.00454987]
[1737671194461,0.6069,3295.0,3294.8,0.00454987]
[1737671194658,0.6069,3294.9,3294.8,0.00454987]
[1737671194969,0.65738565,3294.9,3294.8,0.00454987]
[1737671195158,1.13458565,3294.9,3294.8,0.00454987]
[1737671195360,0.52768565,3294.9,3294.8,0.00454987]
[1737671195558,0.60684,3295.3,3294.8,0.00454987]
[1737671195761,0.4772,3295.6,3294.8,0.00454987]
[1737671196056,0.05047517,3295.5,3294.8,0.00454987]
[1737671196264,0.05047517,3295.5,3294.9,3.8147]
[1737671196559,0.4772,3295.6,3294.9,3.8147]
[1737671196560,4.29179,3295.6,3294.9,3.2078]
[1737671196767,1.08398,3295.6,3294.9,3.2078]
[1737671196962,0.0504743,3295.5,3294.9,3.2078]
[1737671197163,0.4772,3295.6,3294.9,3.2078]
[1737671197360,0.05047512,3295.5,3294.9,3.2078]
[1737671197664,0.05047512,3295.5,3295.0,40.8]
[1737671197872,0.60685,3295.2,3295.0,40.8]
[1737671198365,0.4772,3295.6,3295.0,40.8]
[1737671198568,0.60682,3295.4,3295.0,40.8]
[1737671198768,0.4772,3295.6,3295.0,40.8]
[1737671199059,0.05047343,3295.5,3295.0,40.8]
[1737671199257,0.4772,3295.6,3295.1,0.60686]
[1737671199453,0.03,3295.9,3295.5,3.2078]
[1737671200060,3.2078,3295.7,3295.0,40.8]
[1737671200255,0.52847374,3295.6,3294.8,0.00454987]
[1737671200567,0.6069,3295.0,3294.8,0.00454987]
[1737671200760,0.478,3295.6,3294.8,0.00454987]
[1737671201065,0.60685,3295.2,3294.8,0.00454987]
[1737671201366,0.60679,3295.5,3294.8,0.61145987]
[1737671201567,0.60683,3295.3,3294.8,0.00454987]
[1737671201771,0.60682,3295.4,3294.8,0.00454987]
[1737671202065,3.2078,3295.5,3294.8,0.00454987]
[1737671202367,0.05047524,3295.4,3295.1,3.2078]
[1737671202565,0.05047117,3295.8,3295.3,3.26928303]
[1737671202761,0.00454987,3296.4,3296.3,0.60664]
[1737671202966,0.00454987,3296.4,3296.2,3.2078]
[1737671203165,0.00454987,3296.4,3296.3,0.60664]
[1737671203666,0.00454987,3296.4,3296.3,41.40664]
[1737671204362,0.00454987,3296.4,3296.3,46.40664]
[1737671204563,0.00454987,3296.4,3296.3,41.88904]
[1737671204764,0.00454987,3296.4,3296.3,40.8]
[1737671204967,0.60667,3296.2,3295.8,3.2078]
[1737671205267,0.00454987,3296.4,3295.8,3.2078]
[1737671205462,0.05045939,3296.3,3295.5,40.8]
[1737671205667,0.05045939,3296.3,3295.6,3.2078]
[1737671205868,0.00454987,3296.4,3296.0,3.81448]
[1737671206166,0.00454987,3296.4,3296.1,0.60668]
[1737671206368,0.00454987,3296.4,3296.0,3.2078]
[1737671206665,0.00454987,3296.4,3296.2,0.60666]
[1737671206862,0.00454987,3296.4,3296.1,0.60668]
[1737671207260,0.00454987,3296.4,3296.0,3.2078]
[1737671208365,0.61117987,3296.4,3296.0,3.2078]
[1737671208571,0.00454987,3296.4,3296.0,3.81448]
[1737671208771,0.00454987,3296.4,3296.0,3.2078]
[1737671208968,0.61118987,3296.4,3296.0,3.2078]
[1737671209175,0.60668,3296.1,3296.0,3.2078]
[1737671210863,0.60664,3296.3,3296.0,3.2078]
[1737671211069,0.00454987,3296.4,3296.0,3.2078]
[1737671211570,0.00454987,3296.4,3296.0,3.81448]
[1737671211761,0.00454987,3296.4,3296.0,3.8145]
[1737671211968,0.00454987,3296.4,3296.0,3.2078]
[1737671212272,0.00454987,3296.4,3296.1,0.60668]
[1737671212475,0.00454987,3296.4,3296.0,3.2078]
[1737671212670,0.00454987,3296.4,3296.1,0.60667]
[1737671212866,0.00454987,3296.4,3296.0,3.81449]
[1737671213374,0.00454987,3296.4,3296.3,0.60664]
[1737671214075,0.00454987,3296.4,3296.1,0.60666]
[1737671214465,0.05046001,3296.3,3294.8,3.21234987]
[1737671214773,0.6069,3294.9,3294.8,0.00454987]
[1737671215971,0.60688,3295.0,3294.8,0.00454987]
[1737671216177,0.60686,3295.1,3294.8,0.00454987]
[1737671216379,0.60681,3295.4,3294.8,3.21234987]
[1737671216569,3.2078,3295.6,3294.9,0.5274]
[1737671216970,0.60683,3295.3,3294.9,0.5274]
[1737671217170,0.60682,3295.4,3294.9,0.5274]
[1737671217565,0.6068,3295.5,3294.9,0.5274]
[1737671217769,0.60682,3295.4,3294.9,0.5274]
[1737671217972,3.2078,3295.6,3294.9,0.5274]
[1737671217973,0.60684,3295.3,3294.9,0.5274]
[1737671218170,0.60682,3295.4,3294.9,0.5274]
[1737671218476,3.2078,3295.6,3294.9,0.5274]
[1737671218778,0.60682,3295.4,3294.9,0.5274]
[1737671219476,3.2078,3295.6,3294.9,0.5274]
[1737671219978,0.60683,3295.3,3294.9,0.5274]
[1737671220173,3.2078,3295.6,3294.9,0.5274]
[1737671220374,0.60686,3295.2,3295.0,40.8]
[1737671220568,0.60684,3295.3,3295.0,40.8]
[1737671220774,0.60685,3295.2,3295.0,40.8]
[1737671220975,0.60682,3295.4,3295.0,40.8]
[1737671221175,0.60685,3295.2,3295.0,40.8]
[1737671221583,0.60686,3295.1,3295.0,40.8]
[1737671221974,0.6069,3294.9,3294.8,0.00454987]
[1737671222272,4.7006,3296.2,3294.8,3.2738329]
[1737671222678,0.6069,3294.9,3294.8,0.00454987]
[1737671223069,3.2078,3295.3,3294.8,0.00454987]
[1737671223270,0.60686,3295.2,3294.8,0.61144987]
[1737671223468,0.60687,3295.1,3294.8,0.61144987]
[1737671223872,3.2078,3295.7,3294.8,0.00454987]
[1737671224076,0.6069,3294.9,3294.8,0.00454987]
[1737671224279,3.2078,3295.7,3294.8,0.00454987]
[1737671224582,3.2078,3295.7,3294.9,3.2078]
[1737671224780,0.03,3295.3,3295.2,0.60685]
[1737671225479,0.03,3295.3,3295.2,41.40685]
[1737671225877,0.03,3295.3,3295.2,40.8]
[1737671226085,0.03,3295.3,3295.2,41.40685]
[1737671226776,0.03,3295.3,3295.2,0.60685]
[1737671226982,0.03,3295.3,3294.9,3.2078]
[1737671227176,0.03,3295.3,3295.2,0.60685]
[1737671227383,0.03,3295.3,3295.0,40.8]
[1737671228285,0.63683,3295.3,3295.0,41.40687]
[1737671228677,0.03,3295.3,3295.1,0.60686]
[1737671228887,0.63683,3295.3,3295.1,0.60686]
[1737671229388,0.60687,3295.1,3294.8,0.61145987]
[1737671229580,0.03,3295.3,3294.8,0.61145987]
[1737671229581,0.6069,3294.9,3294.8,0.00454987]
[1737671229777,0.60686,3295.2,3294.9,0.6069]
[1737671229978,0.03,3295.3,3294.9,0.6069]
[1737671230279,0.03,3295.3,3294.8,0.00454987]
[1737671230280,0.60685,3295.2,3295.0,0.60687]
[1737671230481,0.60685,3295.2,3295.0,0.60688]
[1737671230687,0.63684,3295.3,3295.0,0.60688]
[1737671230882,0.63684,3295.3,3294.9,0.60689]
[1737671231186,0.60687,3295.1,3294.8,0.00454987]
[1737671231381,0.60685,3295.2,3294.9,0.6069]
[1737671231584,0.60685,3295.2,3294.8,0.61145987]
[1737671231772,0.60686,3295.1,3294.8,0.00454987]
[1737671231979,0.60686,3295.1,3294.8,0.61145987]
[1737671232179,3.2378,3295.3,3294.8,0.00454987]
[1737671232180,0.6069,3294.9,3294.8,0.00454987]
[1737671232683,3.2378,3295.3,3294.9,0.6069]
[1737671232888,0.28465611,3295.2,3294.8,0.00454987]
[1737671233084,0.28465611,3295.2,3293.9,0.24580871]
[1737671233085,0.5118,3295.1,3293.9,3.2078]
[1737671233283,3.2078,3294.9,3294.2,0.60702]
[1737671233490,0.60695,3294.7,3294.2,0.60702]
[1737671233687,0.60698,3294.5,3294.1,0.60705]
[1737671233888,0.60696,3294.6,3294.1,0.60705]
[1737671234091,0.60696,3294.6,3294.2,0.60703]
[1737671234285,0.61149987,3294.7,3294.3,0.60701]
[1737671234482,0.60697,3294.6,3294.2,0.60703]
[1737671234991,0.60697,3294.6,3294.0,0.00454987]
[1737671235185,0.60697,3294.6,3294.2,0.60703]
[1737671235388,3.2078,3294.4,3294.0,0.00454987]
[1737671235583,0.60705,3294.1,3294.0,0.00454987]
[1737671236793,1.5471,3294.2,3293.9,3.2078]
[1737671236794,0.60707,3294.0,3293.9,3.2078]
[1737671237095,1.5471,3294.2,3293.0,6.03856854]
[1737671237390,0.60711,3293.8,3293.2,0.60721]
[1737671237593,3.2078,3294.0,3293.6,0.60713]
[1737671237790,1.0535,3294.2,3293.8,0.6071]
[1737671238090,1.0535,3294.2,3293.7,0.60711]
[1737671238290,1.0535,3294.2,3293.5,0.00454987]
[1737671238491,1.66054,3294.2,3293.7,0.60712]
[1737671238883,1.0535,3294.2,3293.6,0.60713]
[1737671239084,1.66053,3294.2,3293.6,0.60713]
[1737671239286,1.0535,3294.2,3293.5,0.00454987]
[1737671239693,0.60714,3293.6,3293.5,0.00454987]
[1737671239889,1.0535,3294.2,3292.9,3.2078]
[1737671239890,3.2078,3294.0,3292.9,3.2078]
[1737671240090,0.33524317,3293.9,3293.4,0.60716]
[1737671240292,0.60709,3293.9,3293.3,0.60719]
[1737671240483,0.77677729,3294.1,3293.0,43.63076854]
[1737671240798,0.6071,3293.9,3293.2,0.6072]
[1737671240994,0.6071,3293.9,3293.3,0.6072]
[1737671241193,0.60712,3293.8,3293.2,0.6102598]
[1737671241393,0.60715,3293.6,3293.2,0.0030498]
[1737671241587,3.2078,3294.0,3293.2,0.0030498]
[1737671241994,0.60715,3293.6,3293.2,0.0030498]
[1737671242193,3.2078,3294.0,3293.2,0.0030498]
[1737671242396,3.2078,3293.6,3292.9,3.2078]
[1737671242695,3.2078,3293.6,3291.2,6.9267062]
[1737671242696,3.2078,3293.2,3291.8,3.2078]
[1737671242896,0.60741,3292.2,3292.1,40.8]
[1737671243199,0.60741,3292.2,3291.5,0.5124]
[1737671243200,0.60744,3292.0,3291.5,0.5124]
[1737671243397,3.2078,3292.2,3291.5,0.5124]
[1737671243593,0.60751,3291.6,3291.3,40.8]
[1737671243900,0.60759,3291.2,3290.9,3.2078]
[1737671244100,2.83076854,3291.4,3290.8,4.61780413]
[1737671244292,0.60764,3290.9,3290.8,4.61780413]
[1737671244800,3.2078,3291.1,3290.8,4.61780413]
[1737671245300,0.60764,3290.9,3290.8,4.61780413]
[1737671245711,5.60764,3290.9,3290.8,4.61780413]
[1737671245902,5.60764,3290.9,3290.4,5.7045344]
[1737671245903,5.0,3290.9,3290.4,5.7045344]
[1737671246098,0.60775,3290.4,3290.1,11.5445103]
[1737671246296,0.60776,3290.3,3290.1,11.5445103]
[1737671246496,3.2078,3290.5,3290.1,11.5445103]
[1737671247002,0.60777,3290.3,3290.1,11.5445103]
[1737671247206,3.2078,3290.5,3289.5,3.2078]
[1737671247498,3.2078,3290.1,3289.5,3.81569]
[1737671247692,3.2078,3290.1,3289.6,40.8]
[1737671247892,0.00455685,3290.3,3290.0,0.6078]
[1737671248098,0.00455685,3290.3,3289.9,0.60782]
[1737671248298,0.00455685,3290.3,3289.6,40.8]
[1737671248504,0.00455685,3290.3,3290.1,0.60777]
[1737671248709,0.00455685,3290.3,3289.9,3.2078]
[1737671249099,0.6078,3290.1,3289.9,3.2078]
[1737671249305,0.60784,3289.8,3289.1,0.60796]
[1737671249601,0.60784,3289.9,3289.2,0.60795]
[1737671249795,3.2078,3289.9,3289.3,40.8]
[1737671250004,3.2078,3289.9,3289.3,41.40792]
[1737671250303,3.81563,3289.9,3289.3,40.8]
[1737671250512,0.60786,3289.7,3289.3,40.8]
[1737671250714,3.2078,3289.9,3289.3,40.8]
[1737671250902,0.60785,3289.8,3289.3,40.8]
[1737671251208,3.2078,3289.5,3288.6,3.2078]
[1737671251401,0.60792,3289.4,3288.6,3.81585]
[1737671251704,0.60784,3289.9,3289.1,0.60796]
[1737671251902,3.2078,3290.1,3289.0,44.0078]
[1737671252411,0.03,3289.4,3289.0,44.0078]
[1737671252610,0.03,3289.4,3289.0,40.8]
[1737671252611,0.60795,3289.3,3289.0,40.8]
[1737671252809,3.81574,3289.3,3289.0,40.8]
[1737671253008,3.2078,3289.3,3288.7,1.60774]